bitfinex/quotes_ETHUSD_20260121
["timestamp","ask_amount","ask_price","bid_price","bid_amount"]
[1769010840279,12.65820588,3006.9,3005.2,3.32756555]
[1769010840570,12.65820588,3006.9,3005.2,6.6551311]
[1769010840878,12.65820588,3006.9,3005.2,18.89544463]
[1769010841044,1.9314627,3006.8,3005.2,18.89544463]
[1769010841246,12.53020588,3006.4,3005.0,0.0008]
[1769010841560,3.45401473,3006.7,3005.2,12.24031353]
[1769010841761,0.0052,3007.0,3005.2,12.24031353]
[1769010841962,1.25874059,3007.0,3005.4,12.24031353]
[1769010842263,13.78894647,3007.0,3005.4,12.24031353]
[1769010842469,12.53020588,3006.9,3005.1,6.65534128]
[1769010842690,4.58431425,3007.0,3005.0,12.24111353]
[1769010842691,12.53020588,3006.5,3005.0,0.0008]
[1769010842994,12.53020588,3006.3,3005.0,0.0008]
[1769010843576,12.53020588,3006.1,3005.0,0.0008]
[1769010843771,1.25302059,3006.4,3005.0,12.24111353]
[1769010843981,0.128,3006.7,3005.0,12.24111353]
[1769010844186,0.128,3006.9,3005.0,12.24111353]
[1769010844488,12.65820588,3006.9,3005.0,12.24111353]
[1769010844679,12.65820588,3006.9,3005.0,0.0008]
[1769010844877,12.65820588,3006.7,3005.0,0.0008]
[1769010845081,12.65820588,3006.5,3005.0,0.0008]
[1769010845274,12.65820588,3006.5,3004.7,12.24111353]
[1769010845800,0.128,3006.3,3004.8,3.32800851]
[1769010845973,12.65820588,3006.3,3004.7,0.0008]
[1769010846385,12.65820588,3006.3,3004.7,3.32890551]
[1769010846685,12.53020588,3006.1,3004.7,0.0008]
[1769010847173,12.53020588,3006.1,3004.7,3.32890685]
[1769010847888,12.53020588,3006.1,3004.7,0.0008]
[1769010848073,15.85688585,3006.0,3004.7,0.0008]
[1769010848474,1.93306806,3006.2,3004.7,12.24111353]
[1769010848677,0.002,3006.2,3004.9,12.24031353]
[1769010848872,0.002,3006.2,3004.7,0.0008]
[1769010849078,12.53020588,3006.1,3004.7,0.0008]
[1769010849993,12.53020588,3005.9,3004.4,0.0008]
[1769010850368,0.128,3005.8,3004.4,0.0008]
[1769010850569,12.53020588,3005.7,3004.4,0.0008]
[1769010850794,0.55,3005.6,3004.4,0.0008]
[1769010850961,12.53020588,3005.5,3004.4,0.0008]
[1769010851896,3.32734411,3005.4,3004.4,0.0008]
[1769010852109,12.53020588,3005.3,3004.1,0.0008]
[1769010852402,12.53020588,3005.3,3003.7,0.001]
[1769010852403,12.86294029,3005.3,3003.7,0.001]
[1769010853471,12.53020588,3004.9,3003.7,0.001]
[1769010854170,12.53020588,3004.7,3003.7,0.001]
[1769010854566,12.65820588,3004.6,3002.9,3.33011422]
[1769010854800,1.26582059,3004.5,3002.9,3.33011422]
[1769010855177,1.26582059,3004.5,3002.9,6.66022844]
[1769010856386,12.6363548,3004.3,3002.9,3.33011422]
[1769010856576,12.6363548,3004.3,3002.9,6.66022844]
[1769010857911,3.32845166,3004.4,3002.9,6.66022844]
[1769010858077,3.32845166,3004.4,3002.9,3.33011422]
[1769010858271,3.32845166,3004.4,3002.9,6.66022844]
[1769010858490,16.51480646,3004.4,3002.9,3.33011422]
[1769010859093,16.51480646,3004.4,3003.3,0.001]
[1769010859404,12.6363548,3004.2,3002.9,3.33011422]
[1769010859581,12.6363548,3004.2,3002.8,3.33021951]
[1769010859904,12.6363548,3004.1,3002.7,0.0008]
[1769010860709,2.11089894,3004.3,3002.7,12.32642697]
[1769010860899,0.128,3004.8,3002.8,12.32562697]
[1769010861401,3.4560528,3004.8,3002.8,12.32562697]
[1769010862479,3.4560528,3004.8,3002.7,0.0008]
[1769010862480,0.128,3004.8,3003.0,12.32562697]
[1769010862683,0.128,3005.2,3003.0,12.32562697]
[1769010863704,3.87747262,3005.3,3003.0,12.32562697]
[1769010863886,0.128,3005.3,3003.0,12.32562697]
[1769010864407,0.128,3005.3,3003.4,12.32562697]
[1769010864597,3.4554711,3005.3,3003.6,12.32562697]
[1769010864794,0.34554711,3005.2,3003.8,12.32562697]
[1769010865318,12.98190191,3005.2,3003.5,6.65889794]
[1769010865830,0.34554711,3005.2,3003.7,12.32562697]
[1769010866118,12.81022457,3006.1,3004.1,12.32562697]
[1769010866415,0.13,3006.2,3004.1,12.32562697]
[1769010866622,3.45648307,3006.2,3004.3,12.32562697]
[1769010866797,6.78303996,3006.2,3004.3,12.32562697]
[1769010867000,6.65503996,3006.2,3004.3,12.32562697]
[1769010867989,12.6383548,3006.0,3004.2,3.32867319]
[1769010868325,12.6363548,3005.8,3004.2,3.32867319]
[1769010868524,12.6363548,3005.6,3003.4,12.32562697]
[1769010868724,12.6363548,3005.4,3003.5,3.32936961]
[1769010868902,12.6363548,3005.2,3003.5,3.32936961]
[1769010869327,12.6363548,3005.0,3003.4,3.32950856]
[1769010869624,12.6363548,3005.0,3003.4,6.65906839]
[1769010870294,12.6363548,3005.0,3003.4,3.32950856]
[1769010870590,3.32800851,3004.8,3003.5,0.33295086]
[1769010870797,15.96436331,3004.8,3003.2,3.32976898]
[1769010871317,12.6363548,3004.8,3003.5,6.65889482]
[1769010871517,12.6363548,3004.8,3003.4,3.3295326]
[1769010871829,12.6363548,3004.8,3002.9,3.33011095]
[1769010872125,12.6363548,3004.6,3003.1,3.32987681]
[1769010872331,1.26363548,3004.5,3003.1,3.32987681]
[1769010872494,1.26363548,3004.5,3002.7,3.33111016]
[1769010872703,1.26363548,3004.5,3003.0,12.32562697]
[1769010873140,12.7643548,3004.7,3003.0,12.32562697]
[1769010874741,1.27843548,3004.9,3003.2,12.32562697]
[1769010874904,3.32992898,3004.9,3003.2,12.32562697]
[1769010875208,12.6363548,3004.8,3003.1,6.65978488]
[1769010875614,12.6363548,3004.8,3003.1,3.32989244]
[1769010875843,12.6363548,3004.8,3003.1,6.65978488]
[1769010876019,1.92942128,3004.7,3003.2,12.32562697]
[1769010876219,3.32991268,3004.9,3003.2,12.32562697]
[1769010876620,12.6383548,3004.9,3003.3,6.65934138]
[1769010876815,15.96628594,3004.9,3003.3,6.65934138]
[1769010877139,12.6383548,3004.9,3003.3,6.65934138]
[1769010877602,15.966279,3004.9,3003.3,18.98496835]
[1769010877805,1.5966279,3004.8,3003.3,18.98496835]
[1769010878232,1.5966279,3004.8,3003.4,12.32562697]
[1769010878404,0.002,3004.9,3003.4,12.32562697]
[1769010878836,0.002,3004.9,3003.5,18.98452491]
[1769010879260,0.002,3004.9,3003.6,12.32562697]
[1769010880866,0.002,3004.9,3003.8,12.32562697]
[1769010882708,0.002,3004.9,3003.9,18.98363821]
[1769010883228,0.002,3004.9,3004.0,12.32562697]
[1769010884121,0.002,3004.6,3004.0,12.32562697]
[1769010884453,0.002,3004.9,3004.0,12.32562697]
[1769010884921,0.002,3005.2,3004.3,12.32562697]
[1769010885114,0.002,3006.0,3004.4,12.32562697]
[1769010885314,0.33286385,3005.9,3004.6,12.32562697]
[1769010885953,0.33286385,3005.9,3004.2,12.7519589]
[1769010886314,12.54912671,3005.9,3004.2,12.7519589]
[1769010887115,12.54912671,3005.9,3004.4,12.7519589]
[1769010887310,0.33286385,3005.9,3004.4,12.7519589]
[1769010887506,0.002,3006.0,3004.4,12.7519589]
[1769010887972,12.21826286,3006.0,3004.4,12.7519589]
[1769010888165,12.21626286,3005.9,3004.3,6.65712478]
[1769010888366,12.21626286,3005.9,3004.4,12.7519589]
[1769010888576,12.21626286,3005.9,3004.3,3.32856239]
[1769010888879,12.21626286,3005.7,3004.2,3.32862602]
[1769010889083,12.21626286,3005.5,3003.8,0.55]
[1769010889250,12.21626286,3005.5,3004.1,3.32877848]
[1769010889645,12.21626286,3005.5,3003.8,0.55]
[1769010889976,12.21626286,3005.5,3004.0,3.32888378]
[1769010890180,12.21626286,3005.3,3004.0,6.65777858]
[1769010890779,15.54502564,3006.0,3004.1,12.7519589]
[1769010891182,15.54502564,3006.0,3004.2,6.65734638]
[1769010891491,15.54502564,3006.0,3004.3,12.7519589]
[1769010892890,18.87178842,3006.0,3004.3,12.7519589]
[1769010893095,14.1034417,3005.9,3004.2,3.32867319]
[1769010893387,14.1034417,3005.9,3004.0,6.6577896]
[1769010893388,12.21626286,3005.7,3004.0,6.6577896]
[1769010893788,12.21626286,3005.7,3004.1,12.7519589]
[1769010894276,12.21626286,3005.7,3004.0,3.3288948]
[1769010894475,12.21626286,3005.5,3004.0,6.6577896]
[1769010894876,1.88700655,3005.6,3004.1,12.7519589]
[1769010895066,6.65380264,3005.8,3004.1,12.7519589]
[1769010895252,12.21626286,3005.7,3004.0,3.3288948]
[1769010895457,12.21626286,3005.5,3003.9,16.08086695]
[1769010895682,12.21626286,3005.5,3004.0,12.7519589]
[1769010896687,12.21626286,3005.5,3004.6,0.001]
[1769010896886,14.10331369,3005.4,3004.6,0.001]
[1769010898080,14.10331369,3005.4,3003.3,12.7519589]
[1769010898081,12.21626286,3005.3,3003.3,12.7519589]
[1769010898279,12.21626286,3005.3,3003.5,3.32937002]
[1769010898479,11.86913276,3005.4,3003.4,3.32955149]
[1769010898480,11.61667192,3005.1,3003.4,3.32955149]
[1769010898681,11.61667192,3004.9,3002.9,12.69491674]
[1769010898957,11.61667192,3004.7,3002.9,12.69491674]
[1769010899172,11.61667192,3004.7,3002.9,0.55]
[1769010899584,11.61667192,3004.7,3003.1,12.14491674]
[1769010899762,11.61667192,3004.7,3003.2,15.47464463]
[1769010900088,1.21666719,3004.6,3003.3,15.47457792]
[1769010900272,0.128,3004.8,3003.4,12.14491674]
[1769010900867,11.74467192,3004.8,3003.2,3.32973137]
[1769010901068,11.61667192,3004.8,3003.2,15.47464811]
[1769010901271,11.61667192,3005.2,3003.3,12.14491674]
[1769010901595,5.21448944,3005.4,3003.3,12.14491674]
[1769010901764,0.64944894,3005.3,3003.5,12.14491674]
[1769010902092,11.61667192,3005.1,3003.6,3.32933812]
[1769010902466,11.61667192,3005.1,3003.6,12.14491674]
[1769010902662,11.61667192,3005.1,3003.1,3.32979449]
[1769010903073,11.61667192,3005.1,3003.1,3.32985914]
[1769010903273,11.61667192,3004.9,3002.9,0.55]
[1769010903590,2.15993686,3005.0,3002.8,3.33016959]
[1769010903591,11.61667192,3004.5,3002.8,3.33016959]
[1769010903795,11.61667192,3004.5,3002.9,3.33009554]
[1769010904090,11.61667192,3004.3,3002.7,3.33106384]
[1769010904293,7.19520166,3005.0,3002.8,12.14491674]
[1769010904294,11.61667192,3004.7,3002.8,12.14491674]
[1769010904594,14.94483248,3004.7,3002.8,12.14491674]
[1769010904968,11.61667192,3004.7,3002.8,12.14491674]
[1769010905166,14.94480345,3004.7,3002.8,12.14491674]
[1769010905768,18.27293498,3004.7,3002.8,12.14491674]
[1769010906161,11.61667192,3004.6,3003.0,12.14491674]
[1769010906380,1.8272935,3004.5,3003.0,12.14491674]
[1769010906596,13.44396542,3004.5,3002.9,3.33011422]
[1769010906776,11.61667192,3004.5,3002.9,3.33011422]
[1769010906972,11.61667192,3004.5,3002.8,3.33018928]
[1769010907412,11.61667192,3004.5,3002.7,3.33108151]
[1769010907567,11.61667192,3004.5,3002.7,0.0008]
[1769010907777,11.61667192,3004.3,3002.7,0.0008]
[1769010908210,11.61667192,3004.0,3002.7,0.0008]
[1769010909511,6.19693199,3004.4,3003.3,0.001]
[1769010909512,5.04015531,3004.4,3003.3,0.001]
[1769010910992,1.16166719,3004.4,3003.3,0.001]
[1769010911400,3.32834082,3004.5,3003.3,0.001]
[1769010912005,3.32828416,3004.6,3003.3,0.001]
[1769010912374,0.128,3004.6,3003.3,0.001]
[1769010913284,14.94471777,3004.8,3003.3,0.001]
[1769010913480,0.128,3004.9,3003.3,12.14591674]
[1769010913682,0.128,3004.9,3003.5,12.14491674]
[1769010913880,11.74467192,3004.9,3003.3,0.001]
[1769010914470,6.65601702,3004.8,3003.3,0.001]
[1769010914902,18.27268894,3004.8,3003.3,12.14591674]
[1769010915101,18.27268894,3004.8,3003.3,0.001]
[1769010915102,11.61667192,3004.7,3003.3,0.001]
[1769010915284,14.0452784,3004.6,3003.3,0.001]
[1769010915485,1.82726889,3004.6,3003.3,12.24571523]
[1769010915791,6.65601702,3004.8,3003.3,12.24571523]
[1769010916002,12.21800951,3004.7,3003.3,0.001]
[1769010916610,18.87446959,3004.6,3003.3,0.001]
[1769010916790,12.21800951,3004.5,3003.3,0.001]
[1769010917877,3.32823004,3004.6,3003.3,0.001]
[1769010918878,6.65646008,3004.6,3003.3,0.001]
[1769010919178,0.72064601,3004.5,3003.3,0.001]
[1769010919375,12.93865552,3004.5,3003.3,0.001]
[1769010919579,12.93865552,3004.5,3002.7,3.33108125]
[1769010919780,12.93865552,3004.5,3002.7,0.0008]
[1769010919997,12.93865552,3004.5,3003.0,3.3299977]
[1769010920199,1.95951156,3004.4,3003.0,3.3299977]
[1769010920590,1.95951156,3004.4,3003.0,18.90471626]
[1769010920790,0.72064601,3004.5,3003.2,18.90427835]
[1769010920999,12.34600951,3004.9,3003.2,18.90427835]
[1769010921000,3.32797126,3004.9,3003.3,12.24571523]
[1769010921190,12.21800951,3004.8,3003.3,12.24571523]
[1769010921600,12.34600951,3004.7,3003.3,0.001]
[1769010922111,12.34600951,3004.5,3002.8,12.24471523]
[1769010922411,0.128,3004.5,3003.1,15.57460767]
[1769010922611,0.128,3004.5,3003.2,12.24471523]
[1769010923110,3.3284516,3004.4,3003.2,12.24471523]
[1769010923410,3.45639903,3004.5,3003.0,15.57471265]
[1769010923996,3.45639903,3004.5,3003.2,15.57448362]
[1769010924203,0.128,3004.8,3003.2,15.57448362]
[1769010924402,1.28960095,3004.7,3003.2,15.57448362]
[1769010924708,1.28960095,3004.7,3003.3,12.24471523]
[1769010924906,6.65646008,3004.6,3003.0,3.3298989]
[1769010925112,6.65646008,3004.6,3003.0,6.65990223]
[1769010925292,3.32823004,3004.6,3003.0,18.90461746]
[1769010925491,2.01639898,3004.5,3003.0,18.90461746]
[1769010925716,2.01639898,3004.5,3003.0,12.24471523]
[1769010926415,3.32805664,3004.8,3003.0,12.24471523]
[1769010926588,0.128,3005.0,3003.0,12.24471523]
[1769010926784,12.21800951,3004.9,3003.0,12.24471523]
[1769010927100,12.21800951,3004.6,3002.7,15.57585126]
[1769010927278,12.21800951,3004.6,3002.8,12.24471523]
[1769010927481,1.55461288,3004.5,3003.0,12.24471523]
[1769010927689,13.77262239,3004.5,3003.0,12.24471523]
[1769010928217,13.77262239,3004.5,3002.8,12.24471523]
[1769010928592,1.55461288,3004.5,3002.8,12.24471523]
[1769010928798,12.34600951,3004.6,3002.8,12.24471523]
[1769010929218,18.87469115,3004.5,3002.9,3.33011422]
[1769010929510,18.87469115,3004.5,3002.9,15.57482945]
[1769010929819,18.87469115,3004.5,3002.8,3.33018932]
[1769010929820,12.21800951,3004.4,3002.8,3.33018932]
[1769010930119,12.21800951,3004.2,3002.7,0.0008]
[1769010930520,12.21800951,3004.2,3002.7,3.33108376]
[1769010930891,12.21800951,3004.2,3002.8,3.3301879]
[1769010931217,12.21800951,3004.2,3002.7,3.33107924]
[1769010931528,3.32878399,3004.1,3002.7,3.33107924]
[1769010931694,1.8875547,3004.0,3002.7,12.24551523]
[1769010932820,3.3284516,3004.4,3002.7,12.24551523]
[1769010933228,12.21800951,3004.3,3003.1,0.001]
[1769010933715,12.21800951,3004.1,3003.1,0.001]
[1769010934627,3.32867319,3004.2,3003.1,0.001]
[1769010935132,18.87535589,3004.2,3003.1,0.001]
[1769010935300,1.88753559,3004.1,3003.1,0.001]
[1769010935830,6.6577896,3004.0,3003.1,0.001]
[1769010936541,3.3288948,3004.0,3003.1,0.001]
[1769010936725,18.87579911,3004.0,3003.1,0.001]
[1769010936920,18.87579911,3004.0,3002.7,0.0008]
[1769010936921,12.21800951,3003.9,3002.7,0.0008]
[1769010937119,14.10558942,3003.9,3002.7,0.0008]
[1769010938035,1.88757991,3003.9,3002.7,0.0008]
[1769010938235,0.128,3004.2,3002.7,12.24551523]
[1769010938939,3.87853693,3004.4,3002.7,12.24551523]
[1769010939128,7.20707386,3004.4,3002.7,12.24551523]
[1769010939725,12.21800951,3004.3,3002.7,12.24551523]
[1769010939931,12.21800951,3004.3,3002.7,0.0008]
[1769010940237,12.21800951,3004.1,3002.7,0.0008]
[1769010941238,2.49250834,3004.2,3002.7,12.24551523]
[1769010941438,0.55,3004.2,3002.7,12.24551523]
[1769010942020,3.87872697,3004.2,3002.9,12.24471523]
[1769010942554,7.20745394,3004.2,3002.9,12.24471523]
[1769010943355,7.20745394,3004.2,3002.7,0.0008]
[1769010943556,12.21800951,3004.1,3002.7,0.0008]
[1769010943756,12.21800951,3003.9,3002.7,0.0008]
[1769010944067,12.21800951,3003.9,3002.7,3.33113273]
[1769010944346,12.21800951,3003.9,3002.7,0.0008]
[1769010944550,15.54702525,3003.9,3002.7,0.0008]
[1769010945451,18.87604099,3003.9,3002.7,0.0008]
[1769010945652,2.13685873,3003.8,3002.7,0.0008]
[1769010945947,2.13685873,3003.8,3002.7,10.96598728]
[1769010946118,7.33517332,3004.3,3002.8,3.33022512]
[1769010946318,7.33517332,3004.3,3002.9,10.96518728]
[1769010946555,14.66479268,3004.3,3002.9,10.96518728]
[1769010946766,15.21479268,3004.3,3003.0,0.001]
[1769010946980,0.002,3003.7,3003.0,0.001]
[1769010947965,0.002,3003.7,3003.0,10.96618728]
[1769010948880,0.002,3003.7,3003.0,0.001]
[1769010949083,0.002,3003.7,3003.0,10.96618728]
[1769010949487,0.002,3004.0,3003.1,10.96518728]
[1769010949695,0.002,3004.5,3003.1,10.96518728]
[1769010950095,0.002,3004.5,3003.3,10.96518728]
[1769010950274,0.002,3004.5,3003.5,10.96518728]
[1769010950890,14.53727236,3005.7,3003.5,10.96518728]
[1769010951082,3.32718153,3005.6,3003.5,10.96518728]
[1769010951272,3.32733075,3005.5,3003.5,10.96518728]
[1769010951593,3.32747683,3005.3,3003.5,10.96518728]
[1769010951797,3.32756563,3005.2,3003.5,10.96518728]
[1769010952210,6.65513126,3005.2,3003.5,10.96518728]
[1769010952394,11.20820602,3005.1,3003.6,3.32933812]
[1769010952597,0.128,3005.4,3003.7,10.96518728]
[1769010952978,11.20820602,3005.5,3003.7,10.96518728]
[1769010953902,14.53550519,3005.5,3003.9,10.96518728]
[1769010954876,17.86280436,3005.5,3003.9,10.96518728]
[1769010955208,17.86280436,3005.5,3003.8,3.32911645]
[1769010955209,11.20820602,3005.2,3003.8,3.32911645]
[1769010955397,11.20820602,3005.2,3003.8,6.6582329]
[1769010955710,11.20820602,3005.2,3003.8,17.62342018]
[1769010955917,11.20820602,3005.2,3003.8,10.96518728]
[1769010955918,17.86339766,3005.2,3003.8,10.96518728]
[1769010956222,0.13,3005.7,3003.9,10.96518728]
[1769010956381,0.002,3005.7,3003.9,10.96518728]
[1769010958013,0.002,3005.7,3004.1,10.96518728]
[1769010958718,0.002,3005.7,3004.1,11.51518728]
[1769010960110,0.002,3005.7,3004.3,10.77888736]
[1769010960312,11.06667566,3005.7,3004.3,10.77888736]
[1769010960620,11.06667566,3005.4,3004.2,3.32867319]
[1769010960913,11.06667566,3005.4,3004.1,0.55]
[1769010961089,12.17134323,3005.3,3004.1,0.55]
[1769010961281,12.17134323,3005.3,3004.1,3.87875595]
[1769010961482,12.17134323,3005.3,3004.1,0.55]
[1769010961911,12.17134323,3005.3,3004.1,3.87878196]
[1769010962120,1.10666757,3005.3,3004.1,3.87878196]
[1769010962412,11.06667566,3005.4,3003.9,3.32895744]
[1769010962619,11.06667566,3005.4,3003.8,3.33008337]
[1769010962620,11.06667566,3005.4,3003.8,0.001]
[1769010963403,11.06667566,3005.4,3003.8,3.33010121]
[1769010963615,11.06667566,3005.4,3004.1,3.32877403]
[1769010964105,0.002,3005.4,3004.2,10.77888736]
[1769010964334,0.002,3005.4,3004.3,3.32856239]
[1769010965499,0.002,3005.4,3004.4,10.77888736]
[1769010966001,0.002,3005.7,3004.5,10.77888736]
[1769010966206,0.002,3005.7,3004.6,3.32823004]
[1769010966445,0.002,3005.7,3004.5,3.32831516]
[1769010966627,0.002,3005.7,3004.6,0.33283152]
[1769010967216,11.06667566,3005.7,3004.6,0.33283152]
[1769010967706,0.002,3005.7,3004.7,10.77888736]
[1769010968254,3.32839818,3006.3,3005.0,13.31114808]
[1769010968255,0.002,3006.3,3005.0,13.31114808]
[1769010968536,0.002,3006.5,3005.2,10.77888736]
[1769010969512,0.002,3006.5,3004.9,3.3278581]
[1769010969719,11.06667566,3006.5,3004.9,3.3278581]
[1769010969905,11.06667566,3006.5,3004.4,11.32888736]
[1769010970113,11.06667566,3006.5,3004.9,3.32787886]
[1769010970438,11.06467566,3006.2,3004.7,3.32802947]
[1769010970636,0.128,3006.3,3004.8,10.77888736]
[1769010971157,1.10666757,3006.4,3004.8,10.77888736]
[1769010972011,0.002,3006.5,3004.8,10.77888736]
[1769010972204,0.002,3006.5,3004.9,6.65579552]
[1769010972438,0.002,3006.5,3005.0,10.77888736]
[1769010973127,0.002,3005.9,3005.0,10.77888736]
[1769010973531,0.002,3005.9,3005.1,3.32767628]
[1769010973836,0.002,3005.9,3005.0,3.32773662]
[1769010974243,0.002,3005.9,3005.0,14.10662398]
[1769010974627,0.002,3005.9,3005.1,10.77888736]
[1769010975543,0.002,3005.9,3005.2,3.32756555]
[1769010975741,0.002,3005.9,3005.2,6.6551311]
[1769010976744,0.002,3006.2,3005.3,10.26070857]
[1769010977542,0.002,3006.2,3004.9,10.26170857]
[1769010978137,0.002,3006.2,3005.4,10.26070857]
[1769010979729,0.002,3006.2,3005.6,10.26070857]
[1769010981240,0.002,3006.5,3005.6,10.26070857]
[1769010981445,0.002,3006.5,3005.6,10.73409885]
[1769010981813,0.002,3006.5,3005.7,6.65402402]
[1769010982009,0.002,3006.5,3005.8,10.73409885]
[1769010983232,10.81352799,3006.5,3004.9,10.73509885]
[1769010983616,10.81352799,3006.5,3004.9,0.001]
[1769010983849,6.6529173,3006.2,3004.9,0.001]
[1769010984154,10.81152799,3006.1,3004.9,0.001]
[1769010984312,10.81152799,3006.1,3004.2,3.32767415]
[1769010985247,10.81152799,3006.1,3004.2,17.39044619]
[1769010985653,0.128,3006.0,3004.1,3.32874859]
[1769010985856,0.128,3006.0,3004.1,3.32575242]
[1769010985857,10.81152799,3005.7,3004.1,3.32575242]
[1769010986036,10.81152799,3005.7,3004.1,6.65453641]
[1769010986237,10.81152799,3005.7,3004.1,3.32575242]
[1769010986754,10.81152799,3005.7,3004.0,0.55]
[1769010987058,3.32681969,3005.9,3004.1,10.73409885]
[1769010987240,0.43375573,3005.8,3004.3,10.73409885]
[1769010987446,6.6536132,3005.9,3004.3,10.73409885]
[1769010987633,10.81152799,3005.8,3004.0,7.20776877]
[1769010988047,3.45479064,3005.9,3004.1,10.73409885]
[1769010988755,10.93952799,3005.9,3004.1,10.73409885]
[1769010988961,1.52769965,3005.8,3004.1,10.73409885]
[1769010989644,0.128,3006.0,3004.1,10.73409885]
[1769010990155,0.128,3006.0,3004.3,10.73409885]
[1769010991159,0.13,3006.2,3004.3,10.73409885]
[1769010992052,10.81352799,3006.2,3004.5,10.73409885]
[1769010992285,10.81152799,3006.0,3004.4,3.3284516]
[1769010992481,10.81152799,3006.0,3004.3,3.32850612]
[1769010992642,10.81152799,3005.8,3004.3,3.32850612]
[1769010993269,10.81152799,3005.8,3004.3,6.65706851]
[1769010993473,11.90548079,3005.7,3004.3,6.65706851]
[1769010993674,11.90548079,3005.7,3004.3,3.32850612]
[1769010993868,11.90548079,3005.7,3004.3,6.65706851]
[1769010994180,1.0939528,3005.7,3004.4,10.73409885]
[1769010994477,10.81152799,3005.9,3004.3,3.32850612]
[1769010995174,10.81152799,3005.9,3004.3,6.65706851]
[1769010996479,3.32688982,3005.9,3004.1,17.39166683]
[1769010996781,10.81152799,3005.8,3004.1,17.39166683]
[1769010997277,10.81152799,3005.8,3004.2,10.73409885]
[1769010997447,1.41384178,3005.7,3004.2,10.73409885]
[1769010997650,1.41384178,3005.7,3004.4,0.001]
[1769010998369,1.41384178,3005.7,3004.4,10.73509885]
[1769010998656,1.41384178,3005.7,3004.6,10.73409885]
[1769010998855,6.43,3006.1,3004.6,10.73409885]
[1769010998856,0.128,3006.0,3004.6,10.73409885]
[1769010999057,6.43,3006.1,3004.6,10.73409885]
[1769011000580,6.43,3006.1,3004.8,10.73409885]
[1769011002353,0.002,3006.2,3004.8,10.73409885]
[1769011002555,0.002,3006.2,3005.0,10.73409885]
[1769011004789,0.002,3006.2,3005.1,6.65535256]
[1769011004997,0.002,3006.2,3005.1,17.38945141]
[1769011005874,0.002,3006.2,3005.2,9.7001007]
[1769011006966,0.002,3006.2,3005.3,6.65490964]
[1769011007596,0.002,3006.2,3005.3,3.32745482]
[1769011008104,0.002,3006.2,3005.4,0.81684715]
[1769011008266,0.002,3006.2,3005.3,16.35501034]
[1769011008468,0.002,3006.2,3005.3,3.32745482]
[1769011008987,0.002,3006.2,3005.3,6.65490964]
[1769011009189,0.002,3006.2,3005.1,6.65535256]
[1769011009388,0.002,3006.2,3005.2,9.7001007]
[1769011009389,0.002,3005.9,3005.2,9.7001007]
[1769011011100,0.002,3005.9,3005.1,3.32767628]
[1769011011298,0.002,3005.9,3004.9,3.32787324]
[1769011011798,9.62500711,3006.4,3004.9,3.32787324]
[1769011012000,0.002,3006.5,3005.0,9.7001007]
[1769011012301,1.31342444,3006.5,3005.1,9.7001007]
[1769011013095,11.0996372,3006.5,3005.1,9.7001007]
[1769011013300,9.78621276,3006.4,3004.9,6.655771]
[1769011013505,9.78621276,3006.4,3005.0,9.7001007]
[1769011015293,9.78621276,3006.4,3005.1,6.65535256]
[1769011015491,1.10996372,3006.3,3005.1,6.65535256]
[1769011016308,1.10996372,3006.3,3005.1,16.35545326]
[1769011017010,0.002,3006.5,3005.1,16.35545326]
[1769011017011,0.002,3006.5,3005.2,9.7001007]
[1769011017379,0.002,3006.5,3005.4,9.7001007]
[1769011018326,0.002,3006.5,3005.6,10.14954347]
[1769011018498,0.002,3006.5,3005.8,10.14954347]
[1769011019496,0.002,3006.5,3005.9,16.80312475]
[1769011020090,0.0036,3006.5,3005.9,16.80312475]
[1769011020290,0.0036,3006.5,3005.9,6.65358128]
[1769011020728,1e-08,3006.5,3006.0,10.14954347]
[1769011021493,1e-08,3006.5,3006.1,3.3265693]
[1769011022026,1e-08,3006.5,3006.1,6.6531386]
[1769011022896,1e-08,3006.5,3006.1,16.80268207]
[1769011023116,0.0052,3007.0,3006.2,10.14954347]
[1769011023713,0.0052,3007.0,3006.3,16.80223947]
[1769011024434,0.0052,3007.0,3006.4,10.14954347]
[1769011025311,0.002,3007.5,3006.7,10.14954347]
[1769011025733,0.002,3007.5,3006.9,10.14954347]
[1769011026125,0.002,3007.5,3006.8,3.32579486]
[1769011026327,0.002,3007.5,3006.7,3.32589121]
[1769011026837,9.53683966,3007.5,3006.6,0.0008]
[1769011027235,0.002,3007.5,3006.6,3.32674843]
[1769011027932,9.53683966,3007.5,3006.3,0.0008]
[1769011028134,0.0008,3007.0,3006.3,0.0008]
[1769011029647,9.53563966,3007.0,3006.3,0.0008]
[1769011029842,0.95356397,3006.9,3006.3,0.0008]
[1769011030253,0.0008,3006.5,3006.0,0.0008]
[1769011032744,0.0008,3006.5,3005.2,0.001]
[1769011032745,0.0008,3006.2,3005.2,0.001]
[1769011032962,0.0008,3006.2,3005.2,3.32853134]
[1769011033350,0.0008,3006.2,3005.4,3.32728067]
[1769011033550,0.0008,3006.2,3005.5,3.32721623]
[1769011033760,0.0008,3006.2,3005.4,3.3273109]
[1769011033964,0.0008,3006.2,3005.2,0.001]
[1769011036365,10.10453763,3006.0,3005.2,0.001]
[1769011036734,10.10453763,3006.0,3004.7,3.32807119]
[1769011036934,11.11507139,3005.9,3004.6,3.32818868]
[1769011037447,11.11507139,3005.9,3004.9,3.32783316]
[1769011037643,11.11507139,3005.9,3004.8,3.32796537]
[1769011038050,11.11507139,3005.9,3004.7,3.32810765]
[1769011038570,14.44186868,3005.9,3004.6,3.32817371]
[1769011038773,1.44418687,3005.8,3004.6,3.32817371]
[1769011039274,1.44418687,3005.8,3004.6,6.65640375]
[1769011039978,1.44418687,3005.8,3004.6,16.15230297]
[1769011040155,0.0008,3006.1,3004.6,16.15230297]
[1769011040351,0.0008,3006.1,3004.6,6.65640375]
[1769011040673,10.10533763,3006.1,3004.6,6.65640375]
[1769011041075,10.10533763,3006.1,3004.6,16.15230297]
[1769011041274,10.10533763,3006.1,3004.7,9.49589922]
[1769011041458,1.01061376,3006.0,3004.7,9.49589922]
[1769011041790,0.0008,3006.1,3004.7,9.49589922]
[1769011042149,0.0008,3006.1,3004.9,9.49589922]
[1769011042877,0.0008,3006.2,3005.1,9.49589922]
[1769011043076,0.0008,3006.2,3005.7,0.00080008]
[1769011044365,0.00080008,3006.1,3005.1,9.49589922]
[1769011044553,0.00080008,3006.1,3005.1,12.82354647]
[1769011044758,0.00080008,3006.1,3005.1,3.32764725]
[1769011044962,0.00080008,3006.1,3004.7,9.49589922]